fUST/lending_fUST_20250901
["ID","MTS","AMOUNT","RATE_DAILY","PERIOD"]
[382572686,1756672245771,-314.23768306,0.00016982,2]
[382572689,1756672245780,-1000.52,0.00016982,2]
[382572692,1756672245791,-480.0,0.00016982,2]
[382572696,1756672245800,-480.0,0.00016982,2]
[382572699,1756672245810,-480.0,0.00016982,2]
[382572702,1756672245819,-577.5,0.00016982,2]
[382572705,1756672245829,-480.0,0.00016982,2]
[382572708,1756672245838,-497.1,0.00016982,2]
[382572710,1756672245847,-480.0,0.00016982,2]
[382572712,1756672245856,-151.0,0.00016982,2]
[382572714,1756672245867,-151.0,0.00016982,2]
[382572716,1756672245877,-151.0,0.00016982,2]
[382572718,1756672245886,-888.5,0.00016982,2]
[382572720,1756672245895,-905.4,0.00016982,2]
[382572722,1756672245904,-151.0,0.00016982,2]
[382572724,1756672245913,-839.38,0.00016982,2]
[382572726,1756672245925,-151.0,0.00016982,2]
[382572728,1756672245934,-952.06,0.00016982,2]
[382572730,1756672245944,-480.0,0.00016982,2]
[382572732,1756672245953,-480.0,0.00016982,2]
[382572734,1756672245961,-480.0,0.00016982,2]
[382572736,1756672245970,-480.0,0.00016982,2]
[382572738,1756672245980,-1171.12,0.00016982,2]
[382572740,1756672245989,-480.0,0.00016982,2]
[382572742,1756672245998,-151.0,0.00016982,2]
[382572744,1756672246007,-480.0,0.00016982,2]
[382572746,1756672246016,-151.0,0.00016982,2]
[382572747,1756672246026,-158.813232,0.00016982,2]
[382572749,1756672246035,-480.0,0.00016982,2]
[382572751,1756672246044,-480.0,0.00016982,2]
[382572753,1756672246053,-151.0,0.00016982,2]
[382572755,1756672246063,-151.0,0.00016982,2]
[382572757,1756672246072,-151.0,0.00016982,2]
[382572759,1756672246082,-1636.03,0.00016982,2]
[382572761,1756672246091,-151.0,0.00016982,2]
[382572763,1756672246101,-151.0,0.00016982,2]
[382572765,1756672246110,-151.0,0.00016982,2]
[382572767,1756672246119,-946.5,0.00016982,2]
[382572769,1756672246129,-480.0,0.00016982,2]
[382572771,1756672246138,-151.0,0.00016982,2]
[382572773,1756672246148,-151.0,0.00016982,2]
[382572775,1756672246157,-151.0,0.00016982,2]
[382572777,1756672246166,-151.0,0.00016982,2]
[382572779,1756672246175,-151.0,0.00016982,2]
[382572781,1756672246184,-542.79,0.00016982,2]
[382572783,1756672246193,-151.0,0.00016982,2]
[382572785,1756672246203,-151.0,0.00016982,2]
[382572787,1756672246213,-151.0,0.00016982,2]
[382572789,1756672246223,-151.0,0.00016982,2]
[382572791,1756672246232,-151.0,0.00016982,2]
[382572792,1756672246241,-151.943352,0.00016982,2]
[382572793,1756672246251,-153.745873,0.00016982,2]
[382572794,1756672246259,-151.0,0.00016982,2]
[382572795,1756672246268,-151.0,0.00016982,2]
[382572796,1756672246278,-153.745873,0.00016982,2]
[382572797,1756672246287,-153.745873,0.00016982,2]
[382572798,1756672246297,-151.0,0.00017,2]
[382572799,1756672246306,-151.0,0.00017,2]
[382572801,1756672246315,-151.0,0.00017,2]
[382572803,1756672246324,-151.0,0.00017,2]
[382572804,1756672246333,-433.43188615,0.00017,2]
[382572806,1756672246342,-6994.24996042,0.00017,2]
[382572808,1756672246352,-486.0,0.00017016,2]
[382572810,1756672246362,-486.0,0.00017066,2]
[382572812,1756672246371,-480.0,0.00017092,2]
[382572814,1756672246381,-882.97,0.00017092,2]
[382572816,1756672246391,-480.0,0.00017092,2]
[382572818,1756672246400,-480.0,0.00017092,2]
[382572820,1756672246410,-480.0,0.00017092,2]
[382572822,1756672246419,-480.0,0.00017092,2]
[382572824,1756672246429,-573.39,0.00017092,2]
[382572826,1756672246439,-480.0,0.00017092,2]
[382572828,1756672246449,-480.0,0.00017092,2]
[382572830,1756672246459,-1185.19,0.00017092,2]
[382572832,1756672246468,-699.82,0.00017092,2]
[382572835,1756672246478,-151.0,0.00017092,2]
[382572838,1756672246488,-151.0,0.00017092,2]
[382572840,1756672246498,-151.0,0.00017092,2]
[382572842,1756672246508,-480.0,0.00017092,2]
[382572844,1756672246517,-936.0,0.00017092,2]
[382572847,1756672246527,-354.96544591,0.00017092,2]
[382572850,1756672246537,-575.60032032,0.00017092,2]
[382572853,1756672246547,-480.0,0.00017092,2]
[382572856,1756672246556,-558.42,0.00017092,2]
[382572859,1756672246566,-941.04,0.00017092,2]
[382572862,1756672246575,-480.0,0.00017092,2]
[382572865,1756672246585,-480.0,0.00017092,2]
[382572868,1756672246595,-480.0,0.00017092,2]
[382572870,1756672246603,-344.28,0.00017092,2]
[382572872,1756672246613,-500.72,0.00017092,2]
[382572874,1756672246622,-502.36,0.00017092,2]
[382572876,1756672246632,-489.63,0.00017092,2]
[382572878,1756672246641,-480.0,0.00017093,2]
[382572880,1756672246651,-151.0,0.000171,2]
[382572882,1756672246660,-480.0,0.000171,2]
[382572884,1756672246669,-480.0,0.000171,2]
[382572886,1756672246680,-480.0,0.000171,2]
[382572888,1756672246690,-1327.31,0.000171,2]
[382572890,1756672246699,-686.11,0.000171,2]
[382572892,1756672246709,-894.82,0.000171,2]
[382572894,1756672246718,-953.21,0.000171,2]
[382572896,1756672246728,-524.62,0.000171,2]
[382572899,1756672246738,-480.0,0.000171,2]
[382572900,1756672246749,-480.0,0.000171,2]
[382572903,1756672246759,-480.0,0.000171,2]
[382572904,1756672246769,-480.0,0.000171,2]
[382572907,1756672246779,-530.79,0.000171,2]
[382572909,1756672246788,-660.71,0.000171,2]
[382572911,1756672246798,-480.0,0.000171,2]
[382572913,1756672246808,-764.9,0.000171,2]
[382572915,1756672246817,-480.0,0.000171,2]
[382572917,1756672246831,-480.0,0.000171,2]
[382572919,1756672246842,-856.75,0.000171,2]
[382572920,1756672246851,-480.0,0.000171,2]
[382572923,1756672246861,-589.16,0.000171,2]
[382572925,1756672246871,-897.92,0.000171,2]
[382572927,1756672246881,-480.0,0.000171,2]
[382572929,1756672246891,-480.0,0.000171,2]
[382572931,1756672246900,-1819.0,0.000171,2]
[382572933,1756672246910,-802.42,0.000171,2]
[382572935,1756672246923,-480.0,0.000171,2]
[382572937,1756672246933,-480.0,0.000171,2]
[382572939,1756672246943,-646.12,0.000171,2]
[382572941,1756672246952,-480.0,0.000171,2]
[382572943,1756672246962,-558.4,0.000171,2]
[382572945,1756672246972,-778.25,0.000171,2]
[382572947,1756672246982,-480.0,0.000171,2]
[382572949,1756672246993,-480.0,0.000171,2]
[382572951,1756672247004,-480.0,0.000171,2]
[382572953,1756672247014,-606.6816425,0.000171,2]
[382572955,1756672247024,-161.7593463,0.000171,2]
[382572957,1756672247034,-158.9355649,0.000171,2]
[382572959,1756672247044,-1071.7569979,0.000171,2]
[382572961,1756672247053,-333.5961247,0.000171,2]
[382572963,1756672247063,-480.0,0.000171,2]
[382572965,1756672247073,-654.54,0.000171,2]
[382572967,1756672247082,-480.0,0.000171,2]
[382572969,1756672247093,-480.0,0.000171,2]
[382572971,1756672247103,-943.75,0.000171,2]
[382572973,1756672247112,-480.0,0.000171,2]
[382572975,1756672247122,-480.0,0.000171,2]
[382572978,1756672247132,-480.0,0.000171,2]
[382572980,1756672247142,-742.9,0.000171,2]
[382572982,1756672247151,-480.0,0.000171,2]
[382572984,1756672247160,-935.92,0.000171,2]
[382572985,1756672247170,-480.0,0.000171,2]
[382572988,1756672247181,-480.0,0.000171,2]
[382572990,1756672247191,-759.48,0.000171,2]
[382572992,1756672247200,-759.96,0.000171,2]
[382572994,1756672247210,-625.9,0.000171,2]
[382572996,1756672247221,-496.67,0.000171,2]
[382572998,1756672247231,-480.0,0.000171,2]
[382573000,1756672247241,-480.0,0.000171,2]
[382573002,1756672247250,-586.57,0.000171,2]
[382573004,1756672247260,-805.83,0.000171,2]
[382573006,1756672247274,-480.0,0.000171,2]
[382573008,1756672247286,-480.0,0.000171,2]
[382573010,1756672247295,-480.0,0.000171,2]
[382573012,1756672247305,-552.84,0.000171,2]
[382573014,1756672247315,-787.64,0.000171,2]
[382573016,1756672247329,-583.04,0.000171,2]
[382573018,1756672247338,-480.0,0.000171,2]
[382573020,1756672247349,-480.0,0.000171,2]
[382573022,1756672247358,-1548.08,0.000171,2]
[382573024,1756672247368,-480.0,0.000171,2]
[382573026,1756672247378,-480.0,0.000171,2]
[382573028,1756672247387,-1015.15,0.000171,2]
[382573030,1756672247397,-480.0,0.000171,2]
[382573032,1756672247407,-729.47,0.000171,2]
[382573034,1756672247416,-872.94,0.000171,2]
[382573036,1756672247427,-480.0,0.000171,2]
[382573038,1756672247436,-944.75,0.000171,2]
[382573040,1756672247446,-629.08,0.000171,2]
[382573042,1756672247456,-1320.7,0.000171,2]
[382573044,1756672247466,-823.41,0.000171,2]
[382573046,1756672247475,-878.06,0.000171,2]
[382573048,1756672247486,-440.82269638,0.00017101,2]
[382573077,1756672247754,-39.17730362,0.00017101,2]
[382573079,1756672247764,-480.0,0.00017101,2]
[382573081,1756672247774,-480.0,0.00017101,2]
[382573083,1756672247783,-504.18,0.00017101,2]
[382573085,1756672247794,-480.0,0.00017101,2]
[382573087,1756672247803,-480.0,0.00017101,2]
[382573089,1756672247813,-480.0,0.00017101,2]
[382573091,1756672247822,-535.75299656,0.00017101,2]
[382573093,1756672247832,-480.0,0.00017101,2]
[382573095,1756672247841,-480.0,0.00017101,2]
[382573097,1756672247851,-151.0,0.00017101,2]
[382573099,1756672247860,-585.3,0.00017101,2]
[382573101,1756672247870,-472.49510402,0.00017101,2]
[382573256,1756672249373,-0.02411105,0.00016552,2]
[382573262,1756672249424,-479.97588895,0.00016552,2]
[382573264,1756672249434,-480.0,0.00016552,2]
[382573266,1756672249444,-480.0,0.00016826,2]
[382573268,1756672249453,-480.0,0.00016826,2]
[382573270,1756672249463,-153.745873,0.00016982,2]
[382573272,1756672249473,-480.0,0.000171,2]
[382573274,1756672249483,-71.69489598,0.00017101,2]
[382573276,1756672249492,-480.0,0.00017101,2]
[382573278,1756672249503,-568.04,0.00017101,2]
[382573280,1756672249513,-480.0,0.00017101,2]
[382573282,1756672249523,-480.0,0.00017101,2]
[382573285,1756672249533,-480.0,0.00017101,2]
[382573287,1756672249543,-151.0,0.00017101,2]
[382573289,1756672249552,-151.0,0.00017101,2]
[382573291,1756672249562,-151.0,0.00017101,2]
[382573293,1756672249571,-480.0,0.00017101,2]
[382573295,1756672249580,-151.0,0.00017101,2]
[382573297,1756672249589,-480.0,0.00017101,2]
[382573299,1756672249598,-151.0,0.00017101,2]
[382573301,1756672249608,-480.0,0.00017101,2]
[382573303,1756672249617,-151.0,0.00017101,2]
[382573305,1756672249626,-480.0,0.00017101,2]
[382573307,1756672249635,-151.0,0.00017101,2]
[382573308,1756672249645,-151.0,0.00017101,2]
[382573310,1756672249656,-174.777888,0.00017101,2]
[382573313,1756672249666,-760.43,0.00017101,2]
[382573314,1756672249675,-480.0,0.00017101,2]
[382573317,1756672249684,-480.0,0.00017101,2]
[382573318,1756672249694,-480.0,0.00017101,2]
[382573321,1756672249704,-480.0,0.00017101,2]
[382573322,1756672249714,-480.0,0.00017101,2]
[382573324,1756672249724,-480.0,0.00017101,2]
[382573327,1756672249734,-480.0,0.00017101,2]
[382573329,1756672249744,-480.0,0.00017101,2]
[382573330,1756672249754,-151.0,0.00017101,2]
[382573332,1756672249763,-480.0,0.00017101,2]
[382573334,1756672249773,-480.0,0.00017101,2]
[382573336,1756672249783,-151.0,0.00017101,2]
[382573338,1756672249793,-823.16,0.00017101,2]
[382573340,1756672249802,-3214.93,0.00017101,2]
[382573342,1756672249811,-480.0,0.00017101,2]
[382573344,1756672249821,-1036.21,0.00017101,2]
[382573347,1756672249830,-151.0,0.00017101,2]
[382573348,1756672249842,-151.0,0.00017101,2]
[382573350,1756672249853,-151.0,0.00017101,2]
[382573353,1756672249863,-1334.89,0.00017101,2]
[382573354,1756672249873,-1016.75,0.00017101,2]
[382573356,1756672249883,-480.0,0.00017101,2]
[382573358,1756672249892,-151.0,0.00017101,2]
[382573360,1756672249901,-480.0,0.00017101,2]
[382573362,1756672249911,-151.0,0.00017101,2]
[382573364,1756672249926,-151.0,0.00017101,2]
[382573366,1756672249936,-1006.97,0.00017101,2]
[382573369,1756672249946,-738.81,0.00017101,2]
[382573370,1756672249956,-427.35876707,0.00017101,2]
[382573373,1756672249973,-1418.43123293,0.00017101,2]
[382573375,1756672249983,-257.005188,0.00017101,2]
[382573377,1756672249992,-257.005188,0.00017101,2]
[382573379,1756672250005,-257.005188,0.00017101,2]
[382573382,1756672250018,-257.005188,0.00017101,2]
[382573384,1756672250029,-151.0,0.00017101,2]
[382573386,1756672250039,-151.0,0.00017101,2]
[382573388,1756672250049,-151.0,0.00017101,2]
[382573390,1756672250059,-480.0,0.00017101,2]
[382573392,1756672250068,-151.0,0.00017101,2]
[382573394,1756672250077,-5416.74,0.00017101,2]
[382573396,1756672250086,-4249.28,0.00017101,2]
[382573398,1756672250095,-837.06,0.00017101,2]
[382573400,1756672250105,-480.0,0.00017101,2]
[382573401,1756672250115,-560.08,0.00017101,2]
[382573404,1756672250125,-219.579642,0.00017101,2]
[382573405,1756672250135,-480.0,0.00017101,2]
[382573406,1756672250145,-1959.28,0.00017101,2]
[382573407,1756672250154,-1056.33,0.00017101,2]
[382573408,1756672250163,-480.0,0.00017101,2]
[382573409,1756672250172,-480.0,0.00017101,2]
[382573410,1756672250182,-480.0,0.00017101,2]
[382573411,1756672250192,-151.0,0.00017101,2]
[382573412,1756672250202,-1175.1,0.00017101,2]
[382573413,1756672250211,-195.09837337,0.00017101,2]
[382573414,1756672250788,-480.0,0.00016552,2]
[382573415,1756672250798,-512.35,0.00016552,2]
[382573416,1756672250807,-480.0,0.00016553,2]
[382573417,1756672250817,-543.00059376,0.00016554,2]
[382573418,1756672250827,-480.0,0.00016554,2]
[382573419,1756672250836,-212.28102129,0.00016826,2]
[382573425,1756672251399,-480.0,0.00016551,2]
[382573426,1756672251409,-480.0,0.00016552,2]
[382573427,1756672251418,-267.71897871,0.00016826,2]
[382573428,1756672251428,-176.75,0.00016826,2]
[382573429,1756672251438,-480.0,0.00016827,2]
[382573430,1756672251447,-480.0,0.00016828,2]
[382573431,1756672251457,-207.153874,0.00016982,2]
[382573432,1756672251466,-480.0,0.000171,2]
[382573433,1756672251476,-284.90162663,0.00017101,2]
[382573434,1756672251485,-480.0,0.00017101,2]
[382573435,1756672251495,-832.12,0.00017101,2]
[382573436,1756672251504,-613.83532325,0.00017101,2]
[382573437,1756672251513,-574.91,0.00017101,2]
[382573438,1756672251523,-480.0,0.00017101,2]
[382573439,1756672251533,-151.0,0.00017101,2]
[382573440,1756672251543,-3769.9,0.00017101,2]
[382573441,1756672251552,-151.0,0.00017101,2]
[382573442,1756672251563,-151.0,0.00017101,2]
[382573443,1756672251572,-1136.06,0.00017101,2]
[382573444,1756672251581,-151.343345,0.00017101,2]
[382573445,1756672251591,-151.0,0.00017101,2]
[382573446,1756672251600,-151.0,0.00017101,2]
[382573447,1756672251610,-480.0,0.00017101,2]
[382573448,1756672251619,-480.0,0.00017101,2]
[382573449,1756672251628,-542.77,0.00017101,2]
[382573450,1756672251638,-2596.2767443,0.00017101,2]
[382573451,1756672253820,548.2320119,0.00015853,2]
[382573452,1756672261382,5000.0,0.000173,6]
[382573454,1756672277795,235.12493309,0.00016452,2]
[382573455,1756672299226,599.91412644,0.00016451,2]
[382573456,1756672323551,-480.0,0.00016551,2]
[382573457,1756672323583,-480.0,0.00016551,2]
[382573458,1756672323617,-480.0,0.00016551,2]
[382573459,1756672323649,-480.0,0.00016551,2]
[382573460,1756672323678,-480.0,0.00016551,2]
[382573461,1756672323710,-480.0,0.00016551,2]
[382573462,1756672323741,-480.0,0.00016552,2]
[382573463,1756672323773,-480.0,0.00016552,2]
[382573464,1756672323802,-480.0,0.00016552,2]
[382573465,1756672323832,-530.14977801,0.00016552,2]
[382573466,1756672324282,-480.0,0.00016552,2]
[382573467,1756672324313,-480.0,0.00016552,2]
[382573468,1756672324345,-480.0,0.00016552,2]
[382573469,1756672324376,-480.0,0.00016552,2]
[382573470,1756672324407,-480.0,0.00016552,2]
[382573471,1756672324438,-490.31,0.00016552,2]
[382573472,1756672324469,-571.64,0.00016552,2]
[382573473,1756672324502,-701.2,0.00016552,2]
[382573474,1756672324535,-480.0,0.00016552,2]
[382573475,1756672324567,-233.71,0.00016552,2]
[382573476,1756672324801,-1016.21,0.00016551,2]
[382573477,1756672324838,-246.29,0.00016552,2]
[382573478,1756672324870,-1168.03,0.00016552,2]
[382573479,1756672324901,-480.0,0.00016552,2]
[382573480,1756672324932,-480.0,0.00016552,2]
[382573481,1756672324963,-480.0,0.00016552,2]
[382573482,1756672325204,-924.29,0.00016552,2]
[382573483,1756672326824,1200.0,0.0001655,2]
[382573484,1756672328652,-510.35,0.00016551,2]
[382573485,1756672328684,-480.0,0.00016552,2]
[382573486,1756672328718,-480.0,0.00016552,2]
[382573487,1756672328748,-480.0,0.00016552,2]
[382573488,1756672328782,-480.0,0.00016552,2]
[382573489,1756672328815,-480.0,0.00016552,2]
[382573490,1756672328850,-480.0,0.00016552,2]
[382573491,1756672328880,-480.0,0.00016552,2]
[382573492,1756672328912,-564.39,0.00016552,2]
[382573493,1756672328945,-480.0,0.00016552,2]
[382573494,1756672329298,-973.86,0.00016551,2]
[382573495,1756672329333,-480.0,0.00016552,2]
[382573496,1756672329366,-480.0,0.00016552,2]
[382573497,1756672329400,-646.46,0.00016552,2]
[382573498,1756672329431,-480.0,0.00016552,2]
[382573499,1756672329463,-480.0,0.00016552,2]
[382573500,1756672329498,-1248.42,0.00016552,2]
[382573501,1756672329676,-422.53,0.00016552,2]
[382573502,1756672329708,-681.27,0.00016552,2]
[382573503,1756672329741,-480.0,0.00016552,2]
[382573504,1756672329773,-480.0,0.00016552,2]
[382573505,1756672329804,-480.0,0.00016552,2]
[382573506,1756672329837,-1613.75,0.00016552,2]
[382573507,1756672329929,-1684.91,0.00016552,2]
[382573508,1756672329961,-1246.36,0.00016552,2]
[382573509,1756672329993,-480.0,0.00016552,2]
[382573510,1756672330025,-779.65,0.00016552,2]
[382573511,1756672330057,-480.0,0.00016552,2]
[382573512,1756672330149,-696.63,0.00016552,2]
[382573513,1756672330180,-1088.67,0.00016552,2]
[382573514,1756672330211,-480.0,0.00016552,2]
[382573515,1756672330242,-480.0,0.00016552,2]
[382573516,1756672330273,-480.0,0.00016552,2]
[382573517,1756672330305,-480.0,0.00016552,2]
[382573518,1756672330336,-480.0,0.00016552,2]
[382573519,1756672331507,-629.41,0.00016552,2]
[382573520,1756672331569,-10000.01,0.00016552,2]
[382573521,1756672363620,-480.0,0.00016551,2]
[382573522,1756672363651,-480.0,0.00016551,2]
[382573523,1756672363682,-480.0,0.00016551,2]
[382573524,1756672363712,-871.1,0.00016552,2]
[382573525,1756672363743,-480.0,0.00016552,2]
[382573526,1756672363772,-480.0,0.00016552,2]
[382573527,1756672363803,-480.0,0.00016552,2]
[382573528,1756672363835,-480.0,0.00016552,2]
[382573529,1756672363978,-3718.12,0.00016552,2]
[382573530,1756672364011,-722.01,0.00016552,2]
[382573531,1756672364046,-334.42370012,0.00016552,2]
[382573532,1756672364157,-999.51,0.00016552,2]
[382573533,1756672364186,-480.0,0.00016552,2]
[382573534,1756672364216,-858.97,0.00016552,2]
[382573535,1756672364246,-480.0,0.00016552,2]
[382573536,1756672364276,-264.4134469,0.00016552,2]
[382573537,1756672364305,-297.02660893,0.00016552,2]
[382573538,1756672364337,-501.94795052,0.00016552,2]
[382573539,1756672364369,-500.0,0.00016552,2]
[382573540,1756672364401,-500.0,0.00016552,2]
[382573541,1756672364580,-500.0,0.00016552,2]
[382573542,1756672364614,-500.0,0.00016552,2]
[382573543,1756672364647,-350.0,0.00016552,2]
[382573544,1756672364679,-500.0,0.00016552,2]
[382573545,1756672364710,-500.0,0.00016552,2]
[382573546,1756672364741,-500.0,0.00016552,2]
[382573547,1756672364771,-500.0,0.00016552,2]
[382573548,1756672364802,-500.0,0.00016552,2]
[382573549,1756672365012,-500.0,0.00016552,2]
[382573550,1756672365050,-500.0,0.00016552,2]
[382573551,1756672365081,-140.01,0.00016552,2]
[382573552,1756672365276,-19.99,0.00016552,2]
[382573553,1756672365308,-669.56,0.00016552,2]
[382573554,1756672365338,-1714.37,0.00016552,2]
[382573555,1756672365370,-480.0,0.00016552,2]
[382573556,1756672365401,-480.0,0.00016552,2]
[382573557,1756672365432,-667.31,0.00016552,2]
[382573558,1756672365462,-480.0,0.00016552,2]
[382573559,1756672366222,-160.10453758,0.00016552,2]
[382573560,1756672366242,-480.0,0.00016552,2]
[382573561,1756672366263,-480.0,0.00016552,2]
[382573562,1756672366288,-480.0,0.00016551,2]
[382573563,1756672366298,-187.31,0.00016552,2]
[382573564,1756672366315,-480.0,0.00016552,2]
[382573565,1756672366335,-977.55,0.00016552,2]
[382573566,1756672366381,-10000.01,0.00016552,2]
[382573567,1756672366408,-10000.01,0.00016552,2]
[382573568,1756672366442,-10000.01,0.00016552,2]
[382573569,1756672366468,-6254.34847201,0.00016552,2]
[382573570,1756672366478,-480.0,0.00016553,2]
[382573571,1756672366487,-971.16,0.00016553,2]
[382573572,1756672366497,-480.0,0.00016553,2]
[382573573,1756672366506,-1615.07,0.00016553,2]
[382573574,1756672366515,-199.43152799,0.00016553,2]
[382573575,1756672366552,-280.56847201,0.00016553,2]
[382573576,1756672366561,-480.0,0.00016553,2]
[382573577,1756672366571,-515.77808052,0.00016553,2]
[382573578,1756672366581,-490.07,0.00016553,2]
[382573579,1756672366591,-480.0,0.00016553,2]
[382573580,1756672366600,-480.0,0.00016553,2]
[382573581,1756672366610,-1028.22,0.00016553,2]
[382573582,1756672366619,-480.0,0.00016554,2]
[382573583,1756672366629,-480.0,0.00016554,2]
[382573584,1756672366639,-480.0,0.00016554,2]
[382573585,1756672366649,-621.59548838,0.00016554,2]
[382573586,1756672366659,-823.41,0.00016554,2]
[382573587,1756672366668,-480.0,0.00016554,2]
[382573588,1756672366677,-480.0,0.00016554,2]
[382573589,1756672366691,-587.65353831,0.00016554,2]
[382573590,1756672366704,-480.0,0.00016554,2]
[382573591,1756672373962,-720.27,0.00016552,2]
[382573592,1756672373992,-754.79,0.00016552,2]
[382573593,1756672374023,-500.0,0.00016552,2]
[382573594,1756672374056,-500.0,0.00016552,2]
[382573595,1756672374087,-500.0,0.00016552,2]
[382573596,1756672374118,-163.23045314,0.00016552,2]
[382573597,1756672374148,-555.73,0.00016552,2]
[382573598,1756672374178,-480.0,0.00016553,2]
[382573599,1756672374207,-480.0,0.00016553,2]
[382573600,1756672374236,-188.92909372,0.00016553,2]
[382573601,1756672374363,-314.11090628,0.00016553,2]
[382573602,1756672374395,-617.69,0.00016553,2]
[382573603,1756672374505,480.0,0.00016554,2]
[382573604,1756672374747,480.0,0.00016551,2]
[382573605,1756672374779,480.0,0.00016552,2]
[382573606,1756672376706,480.0,0.00016551,2]
[382573607,1756672376737,480.0,0.00016552,2]
[382573608,1756672378416,480.0,0.00016553,2]
[382573609,1756672378842,5000.0,0.00016609,2]
[382573610,1756672381912,256.40818744,0.00016552,2]
[382573611,1756672381938,607.13181256,0.00016552,2]
[382573612,1756672382316,300.0,0.00016608,2]
[382573613,1756672382536,503.45,0.00016553,2]
[382573614,1756672383163,235.12493309,0.00016452,2]
[382573615,1756672384181,162.06972334,0.00016272,2]
[382573616,1756672384543,1888.9,0.00016551,2]
[382573617,1756672384772,1888.9,0.00016552,2]
[382573618,1756672385067,1888.9,0.00016552,2]
[382573619,1756672385459,1888.9,0.00016553,2]
[382573620,1756672387108,636.63353101,0.00016609,2]
[382573621,1756672387133,4363.36646899,0.00016609,2]
[382573622,1756672387291,906.69,0.00016552,2]
[382573623,1756672387636,386.69873926,0.00016607,2]
[382573624,1756672391541,900.85,0.00016552,2]
[382573625,1756672393420,480.0,0.00016551,2]
[382573626,1756672393702,599.86,0.00016552,2]
[382573627,1756672395125,588.69,0.00016553,2]
[382573628,1756672395678,1773.85479175,0.00016609,2]
[382573629,1756672395703,3226.14520825,0.00016609,2]
[382573630,1756672396187,480.0,0.00016554,2]
[382573631,1756672397234,917.15,0.00016552,2]
[382573632,1756672398125,1348.66,0.00016552,2]
[382573633,1756672401270,480.0,0.00016553,2]
[382573634,1756672403495,3548.05479175,0.00016609,2]
[382573635,1756672403521,1451.94520825,0.00016609,2]
[382573636,1756672405348,480.0,0.00016552,2]
[382573637,1756672405934,480.0,0.00016554,2]
[382573638,1756672406377,480.0,0.00016552,2]
[382573639,1756672412067,2619.16785404,0.00016551,2]
[382573640,1756672419863,5000.0,0.00016551,2]
[382573641,1756672427921,2380.84214596,0.00016551,2]
[382573642,1756672427947,2619.15785404,0.00016551,2]
[382573643,1756672442465,300.0,0.0001655,2]
[382573644,1756672443423,5000.0,0.00016551,2]
[382573645,1756672451235,5000.0,0.00016551,2]
[382573646,1756672468471,5000.0,0.00016551,2]
[382573647,1756672477902,5000.0,0.00016551,2]
[382573649,1756672494193,0.01,0.00016551,2]